[Event "Early-Titled-Tuesday-Blitz-October-10-2023"]
[Site "Chess.com"]
[Date "2023.10.10"]
[Round "1"]
[White "wonderfultime"]
[Black "boasovietica"]
[Result "0-1"]
[WhiteElo "2996"]
[BlackElo "2528"]
[TimeControl "180+1"]
[EndTime "8:08:15 PDT"]
[Termination "boasovietica won by resignation"]

1. d4 {[%clk 0:03:00.9]} 1... Nf6 {[%clk 0:02:56.2]} 2. Nf3 {[%clk 0:02:59.9]}
2... g6 {[%clk 0:02:51.9]} 3. Bg5 {[%clk 0:03:00.1]} 3... Bg7 {[%clk 0:02:51.6]}
4. Nbd2 {[%clk 0:03:00.5]} 4... d5 {[%clk 0:02:51.1]} 5. c3 {[%clk 0:03:00.2]}
5... O-O {[%clk 0:02:51.3]} 6. e3 {[%clk 0:03:00.7]} 6... c5 {[%clk 0:02:51.8]}
7. Bd3 {[%clk 0:03:00.2]} 7... Nc6 {[%clk 0:02:52]} 8. O-O {[%clk 0:03:00.5]}
8... Qb6 {[%clk 0:02:52.6]} 9. Rb1 {[%clk 0:03:00.5]} 9... Nd7 {[%clk
0:02:51.7]} 10. b4 {[%clk 0:02:41.9]} 10... c4 {[%clk 0:02:51.7]} 11. Bc2 {[%clk
0:02:40.6]} 11... e5 {[%clk 0:02:51.3]} 12. e4 {[%clk 0:02:22.1]} 12... exd4
{[%clk 0:02:27.9]} 13. exd5 {[%clk 0:02:22.2]} 13... d3 {[%clk 0:02:08.9]} 14.
dxc6 {[%clk 0:01:56.3]} 14... dxc2 {[%clk 0:02:07.9]} 15. Qxc2 {[%clk
0:01:57.2]} 15... Qxc6 {[%clk 0:02:07.1]} 16. Rfe1 {[%clk 0:01:49.6]} 16... Nb6
{[%clk 0:01:59.8]} 17. b5 {[%clk 0:01:31.2]} 17... Qc7 {[%clk 0:01:51]} 18. Re7
{[%clk 0:01:19.5]} 18... Bd7 {[%clk 0:01:40.5]} 19. Qe4 {[%clk 0:01:09.7]} 19...
Rfe8 {[%clk 0:01:32.7]} 20. h3 {[%clk 0:00:55.5]} 20... Rxe7 {[%clk 0:01:31.8]}
21. Qxe7 {[%clk 0:00:56.4]} 21... Re8 {[%clk 0:01:29]} 22. Qb4 {[%clk
0:00:55.1]} 22... Bf5 {[%clk 0:01:25.6]} 23. Rc1 {[%clk 0:00:51.2]} 23... Bd3
{[%clk 0:01:21.4]} 24. Qa5 {[%clk 0:00:51.4]} 24... Nd5 {[%clk 0:00:57.8]} 25.
Qxa7 {[%clk 0:00:42]} 25... Nxc3 {[%clk 0:00:54.2]} 26. Re1 {[%clk 0:00:42.6]}
26... Ne2+ {[%clk 0:00:48.5]} 27. Kh1 {[%clk 0:00:41.4]} 27... c3 {[%clk
0:00:47.9]} 28. Nb3 {[%clk 0:00:41.7]} 28... h6 {[%clk 0:00:38.8]} 29. Be3
{[%clk 0:00:39.2]} 29... c2 {[%clk 0:00:30.5]} 30. Qa3 {[%clk 0:00:27.9]} 30...
Bc3 {[%clk 0:00:25.5]} 31. b6 {[%clk 0:00:19.3]} 31... Qc8 {[%clk 0:00:19.4]}
32. Rc1 {[%clk 0:00:14.4]} 32... Nxc1 {[%clk 0:00:19]} 33. Nxc1 {[%clk
0:00:15.2]} 33... Be4 {[%clk 0:00:16.9]} 34. Ng1 {[%clk 0:00:11]} 34... Bg7
{[%clk 0:00:14.5]} 35. Qb4 {[%clk 0:00:10.9]} 35... Qd7 {[%clk 0:00:14]} 36. a4
{[%clk 0:00:09.7]} 36... Bf8 {[%clk 0:00:11.3]} 37. Qb3 {[%clk 0:00:07.3]} 37...
Qc6 {[%clk 0:00:10.7]} 38. Nge2 {[%clk 0:00:04.7]} 38... Bxg2+ {[%clk
0:00:10.3]} 39. Kh2 {[%clk 0:00:05.6]} 39... Bf3 {[%clk 0:00:08.9]} 40. Nd4
{[%clk 0:00:05.3]} 40... Qd5 {[%clk 0:00:08.4]} 41. Kg1 {[%clk 0:00:06.1]} 41...
Qxb3 {[%clk 0:00:08.2]} 42. Ncxb3 {[%clk 0:00:07]} 42... Ba3 {[%clk 0:00:05.5]}
43. Nxf3 {[%clk 0:00:06.8]} 43... Rc8 {[%clk 0:00:03.8]} 44. Nc1 {[%clk
0:00:05]} 44... Bxc1 {[%clk 0:00:03.5]} 45. Bxc1 {[%clk 0:00:05.9]} 45... Rd8
{[%clk 0:00:03.6]} 46. Nd2 {[%clk 0:00:04]} 46... Rd4 {[%clk 0:00:03.2]} 47. Kg2
{[%clk 0:00:04.3]} 47... Rxa4 {[%clk 0:00:03.6]} 48. Nb3 {[%clk 0:00:02.1]}
48... Rb4 {[%clk 0:00:03.8]} 49. Na1 {[%clk 0:00:01.7]} 49... Rb1 {[%clk
0:00:04.2]} 50. Nxc2 {[%clk 0:00:02.3]} 50... Rxc1 {[%clk 0:00:04.6]} 51. Na3
{[%clk 0:00:03.2]} 51... Rc3 {[%clk 0:00:04.7]} 52. Nb5 {[%clk 0:00:03.7]} 52...
Rb3 {[%clk 0:00:05.2]} 53. Nd6 {[%clk 0:00:04.4]} 53... Rxb6 {[%clk 0:00:05.4]}
54. Nc4 {[%clk 0:00:05.3]} 54... Rb4 {[%clk 0:00:05.7]} 55. Ne5 {[%clk
0:00:04.5]} 55... b5 {[%clk 0:00:06]} 56. Nc6 {[%clk 0:00:04.5]} 56... Rb1
{[%clk 0:00:06.4]} 0-1

[Event "Early-Titled-Tuesday-Blitz-October-10-2023"]
[Site "Chess.com"]
[Date "2023.10.10"]
[Round "1"]
[White "GalaxyRoman"]
[Black "schack_vit"]
[Result "1-0"]
[WhiteElo "2807"]
[BlackElo "2455"]
[TimeControl "180+1"]
[EndTime "8:08:15 PDT"]
[Termination "GalaxyRoman won by resignation"]

1. e4 {[%clk 0:03:00.9]} 1... c5 {[%clk 0:02:47.1]} 2. Nc3 {[%clk 0:02:53.9]}
2... Nc6 {[%clk 0:02:46.8]} 3. f4 {[%clk 0:02:54.4]} 3... g6 {[%clk 0:02:46.4]}
4. Nf3 {[%clk 0:02:55.1]} 4... Bg7 {[%clk 0:02:46.6]} 5. Bb5 {[%clk 0:02:55.8]}
5... Nd4 {[%clk 0:02:46.8]} 6. O-O {[%clk 0:02:56.4]} 6... a6 {[%clk 0:02:44.5]}
7. Bd3 {[%clk 0:02:53.7]} 7... b5 {[%clk 0:02:44.5]} 8. Nxd4 {[%clk 0:02:51.8]}
8... cxd4 {[%clk 0:02:44.4]} 9. Ne2 {[%clk 0:02:52]} 9... Bb7 {[%clk 0:02:41.8]}
10. b3 {[%clk 0:02:50.9]} 10... Qb6 {[%clk 0:02:37.4]} 11. Kh1 {[%clk
0:02:50.1]} 11... d6 {[%clk 0:02:36.8]} 12. Bb2 {[%clk 0:02:49.5]} 12... Nh6
{[%clk 0:02:34.8]} 13. Qe1 {[%clk 0:02:49.1]} 13... O-O {[%clk 0:02:33.3]} 14.
Qf2 {[%clk 0:02:48.9]} 14... e5 {[%clk 0:02:28.8]} 15. c3 {[%clk 0:02:28.9]}
15... f5 {[%clk 0:02:28.2]} 16. exf5 {[%clk 0:02:23.6]} 16... e4 {[%clk
0:02:25.7]} 17. Bc2 {[%clk 0:02:12.7]} 17... e3 {[%clk 0:02:24.9]} 18. dxe3
{[%clk 0:02:07.4]} 18... dxe3 {[%clk 0:02:25.8]} 19. Qg3 {[%clk 0:02:05.3]}
19... Nxf5 {[%clk 0:02:25.7]} 20. Bxf5 {[%clk 0:02:03.4]} 20... Rxf5 {[%clk
0:02:26.6]} 21. Rad1 {[%clk 0:01:58.5]} 21... Re8 {[%clk 0:02:15]} 22. Rd3
{[%clk 0:01:30.2]} 22... Rd5 {[%clk 0:02:03.7]} 23. Rxd5 {[%clk 0:01:19.4]}
23... Bxd5 {[%clk 0:02:04.6]} 24. f5 {[%clk 0:01:17.7]} 24... Bf7 {[%clk
0:01:57.2]} 25. fxg6 {[%clk 0:01:08.7]} 25... Bxg6 {[%clk 0:01:55.3]} 26. Nf4
{[%clk 0:01:09.3]} 26... Be5 {[%clk 0:01:45.6]} 27. Bc1 {[%clk 0:00:08.9]} 27...
e2 {[%clk 0:01:40.9]} 28. Re1 {[%clk 0:00:07.7]} 28... Bxc3 {[%clk 0:01:27.4]}
29. Qxc3 {[%clk 0:00:03.1]} 29... Qf2 {[%clk 0:01:27.4]} 30. h3 {[%clk
0:00:02.4]} 30... Rf8 {[%clk 0:01:05.5]} 31. Kh2 {[%clk 0:00:02.8]} 31... Rxf4
{[%clk 0:00:48.1]} 32. Bxf4 {[%clk 0:00:03.7]} 32... Qxf4+ {[%clk 0:00:48.3]}
33. Qg3 {[%clk 0:00:04.4]} 33... Qd2 {[%clk 0:00:47.9]} 34. Qf2 {[%clk
0:00:04.7]} 34... Bd3 {[%clk 0:00:46.5]} 35. Qg3+ {[%clk 0:00:04.7]} 35... Kf7
{[%clk 0:00:43]} 36. Qf2+ {[%clk 0:00:04.9]} 36... Ke6 {[%clk 0:00:43.2]} 37.
Rg1 {[%clk 0:00:03.5]} 37... Qg5 {[%clk 0:00:38.8]} 38. Qg3 {[%clk 0:00:03]}
38... Qe5 {[%clk 0:00:38.2]} 39. Qxe5+ {[%clk 0:00:02.8]} 39... Kxe5 {[%clk
0:00:39.1]} 40. Kg3 {[%clk 0:00:03.4]} 40... Ke4 {[%clk 0:00:36.2]} 41. Kf2
{[%clk 0:00:03.9]} 41... d5 {[%clk 0:00:36.7]} 42. g4 {[%clk 0:00:04.1]} 42...
d4 {[%clk 0:00:36.8]} 43. Ke1 {[%clk 0:00:03.1]} 43... b4 {[%clk 0:00:35.2]} 44.
Kd2 {[%clk 0:00:02.9]} 44... Bb5 {[%clk 0:00:35.2]} 45. g5 {[%clk 0:00:02.6]}
45... Kf3 {[%clk 0:00:33.2]} 46. g6 {[%clk 0:00:01.5]} 46... hxg6 {[%clk
0:00:29.5]} 47. Rxg6 {[%clk 0:00:02.4]} 47... Kf2 {[%clk 0:00:28.5]} 48. Rf6+
{[%clk 0:00:02.8]} 48... Kg3 {[%clk 0:00:27.6]} 49. Rg6+ {[%clk 0:00:02.4]}
49... Kxh3 {[%clk 0:00:27.2]} 50. Ke1 {[%clk 0:00:03]} 50... d3 {[%clk
0:00:26.4]} 51. Rg5 {[%clk 0:00:03.6]} 51... Kh4 {[%clk 0:00:25.9]} 52. Rg6
{[%clk 0:00:03.8]} 52... Kh5 {[%clk 0:00:24.8]} 53. Rg8 {[%clk 0:00:03.9]} 53...
Kh6 {[%clk 0:00:22.2]} 54. Rg4 {[%clk 0:00:03.8]} 54... Kh5 {[%clk 0:00:18.7]}
55. Rxb4 {[%clk 0:00:03.9]} 55... Kg5 {[%clk 0:00:19.1]} 56. a4 {[%clk
0:00:03.8]} 56... Bc6 {[%clk 0:00:18.2]} 57. Rd4 {[%clk 0:00:04]} 57... Kf5
{[%clk 0:00:14]} 58. Rxd3 {[%clk 0:00:04.3]} 58... Ke4 {[%clk 0:00:12.5]} 59.
Rc3 {[%clk 0:00:04.3]} 59... Bd5 {[%clk 0:00:12.2]} 60. Kxe2 {[%clk 0:00:04.8]}
60... Kd4 {[%clk 0:00:13.1]} 61. Kd2 {[%clk 0:00:05.4]} 61... Be6 {[%clk
0:00:12.3]} 62. Kc2 {[%clk 0:00:05.5]} 62... a5 {[%clk 0:00:12.9]} 63. Kb2
{[%clk 0:00:06.2]} 63... Bf7 {[%clk 0:00:12.8]} 64. Rc7 {[%clk 0:00:06.7]} 64...
Be6 {[%clk 0:00:13.2]} 65. Ra7 {[%clk 0:00:07.3]} 65... Bd5 {[%clk 0:00:14.1]}
66. Rxa5 {[%clk 0:00:07.7]} 1-0

[Event "Early-Titled-Tuesday-Blitz-October-10-2023"]
[Site "Chess.com"]
[Date "2023.10.10"]
[Round "1"]
[White "JimDiGrease"]
[Black "Antik5"]
[Result "1-0"]
[WhiteElo "2927"]
[BlackElo "2502"]
[TimeControl "180+1"]
[EndTime "8:08:19 PDT"]
[Termination "JimDiGrease won by resignation"]

1. d4 {[%clk 0:03:00.9]} 1... Nf6 {[%clk 0:02:59.6]} 2. c4 {[%clk 0:03:01]} 2...
e6 {[%clk 0:03:00.2]} 3. Bf4 {[%clk 0:03:00.9]} 3... Bb4+ {[%clk 0:02:56.5]} 4.
Nd2 {[%clk 0:03:00.8]} 4... O-O {[%clk 0:02:56.5]} 5. a3 {[%clk 0:03:00.9]} 5...
Bxd2+ {[%clk 0:02:56.7]} 6. Qxd2 {[%clk 0:03:01.8]} 6... d6 {[%clk 0:02:46.8]}
7. e3 {[%clk 0:03:00.2]} 7... b6 {[%clk 0:02:41.7]} 8. f3 {[%clk 0:02:26.9]}
8... Nbd7 {[%clk 0:02:31.1]} 9. Bg5 {[%clk 0:02:25.4]} 9... h6 {[%clk
0:02:30.3]} 10. Bh4 {[%clk 0:02:25]} 10... c5 {[%clk 0:02:23.6]} 11. Ne2 {[%clk
0:02:17.6]} 11... Ba6 {[%clk 0:01:56.1]} 12. Nc3 {[%clk 0:02:11.5]} 12... Rc8
{[%clk 0:01:40.9]} 13. Rd1 {[%clk 0:02:09.4]} 13... cxd4 {[%clk 0:01:26.4]} 14.
Qxd4 {[%clk 0:02:10.3]} 14... Qc7 {[%clk 0:01:13.3]} 15. Bg3 {[%clk 0:01:27.5]}
15... e5 {[%clk 0:01:06.7]} 16. Qxd6 {[%clk 0:01:26.9]} 16... Bxc4 {[%clk
0:01:01.2]} 17. Qxc7 {[%clk 0:01:00.2]} 17... Rxc7 {[%clk 0:01:00.9]} 18. Rd6
{[%clk 0:01:01.1]} 18... Bxf1 {[%clk 0:00:53.5]} 19. Rxf1 {[%clk 0:01:02]} 19...
Re8 {[%clk 0:00:42.7]} 20. Ke2 {[%clk 0:00:58.8]} 20... Nc5 {[%clk 0:00:42.7]}
21. Rfd1 {[%clk 0:00:56.7]} 21... Rce7 {[%clk 0:00:42.3]} 22. Bh4 {[%clk
0:00:49.5]} 22... e4 {[%clk 0:00:32]} 23. f4 {[%clk 0:00:26.9]} 23... Re6 {[%clk
0:00:32.4]} 24. Bxf6 {[%clk 0:00:24.8]} 24... Rxf6 {[%clk 0:00:25.7]} 25. Rxf6
{[%clk 0:00:20.8]} 25... gxf6 {[%clk 0:00:26.6]} 26. Rd4 {[%clk 0:00:21.1]}
26... Kg7 {[%clk 0:00:23.3]} 27. b4 {[%clk 0:00:19.8]} 27... Ne6 {[%clk
0:00:11.6]} 28. Rxe4 {[%clk 0:00:17.2]} 28... Rc8 {[%clk 0:00:11.8]} 29. Kd3
{[%clk 0:00:14.9]} 29... Rd8+ {[%clk 0:00:09.3]} 30. Kc2 {[%clk 0:00:15.1]}
30... Kh7 {[%clk 0:00:05.3]} 31. Rc4 {[%clk 0:00:14.6]} 31... Rg8 {[%clk
0:00:05.1]} 32. g3 {[%clk 0:00:13.8]} 32... h5 {[%clk 0:00:05.7]} 33. Nd5 {[%clk
0:00:12.8]} 33... Rg6 {[%clk 0:00:01.7]} 34. f5 {[%clk 0:00:10.4]} 34... Rg5
{[%clk 0:00:02.2]} 35. Nxf6+ {[%clk 0:00:09.8]} 35... Kg7 {[%clk 0:00:02.7]} 36.
Nxh5+ {[%clk 0:00:06.4]} 36... Rxh5 {[%clk 0:00:02.8]} 37. fxe6 {[%clk
0:00:07.3]} 37... fxe6 {[%clk 0:00:03.3]} 38. Rc7+ {[%clk 0:00:07.2]} 38... Kf6
{[%clk 0:00:03.9]} 39. Rxa7 {[%clk 0:00:08.1]} 39... Rxh2+ {[%clk 0:00:03.9]}
40. Kd3 {[%clk 0:00:08.7]} 40... Rg2 {[%clk 0:00:04.1]} 41. Ra6 {[%clk
0:00:08.3]} 41... Ra2 {[%clk 0:00:04.1]} 42. Kc4 {[%clk 0:00:07.2]} 42... Ke5
{[%clk 0:00:04.2]} 43. Kb3 {[%clk 0:00:05.8]} 43... Re2 {[%clk 0:00:03.8]} 44.
Rxb6 {[%clk 0:00:06.3]} 44... Rxe3+ {[%clk 0:00:04.5]} 45. Kb2 {[%clk 0:00:07]}
45... Rxg3 {[%clk 0:00:05.4]} 46. a4 {[%clk 0:00:07.6]} 46... Kd5 {[%clk
0:00:05.5]} 47. a5 {[%clk 0:00:08]} 47... e5 {[%clk 0:00:05.6]} 48. a6 {[%clk
0:00:08.6]} 48... Rg8 {[%clk 0:00:03.4]} 49. Rb7 {[%clk 0:00:06.8]} 49... Kc4
{[%clk 0:00:03.4]} 50. Kc2 {[%clk 0:00:04.5]} 50... Rg2+ {[%clk 0:00:03.2]} 51.
Kd1 {[%clk 0:00:04.8]} 51... Ra2 {[%clk 0:00:03.1]} 52. b5 {[%clk 0:00:04.8]}
52... e4 {[%clk 0:00:02.7]} 53. a7 {[%clk 0:00:05.3]} 53... Kd3 {[%clk
0:00:02.3]} 54. Rd7+ {[%clk 0:00:05.2]} 54... Ke3 {[%clk 0:00:02.5]} 55. b6
{[%clk 0:00:06.1]} 55... Ra1+ {[%clk 0:00:01.9]} 56. Kc2 {[%clk 0:00:06.3]}
56... Ke2 {[%clk 0:00:02.6]} 57. Rd8 {[%clk 0:00:04.8]} 57... e3 {[%clk
0:00:02.9]} 58. a8=Q {[%clk 0:00:04.9]} 58... Rxa8 {[%clk 0:00:01.9]} 59. Rxa8
{[%clk 0:00:05.8]} 59... Kf1 {[%clk 0:00:02.4]} 60. Re8 {[%clk 0:00:06.7]} 1-0

[Event "Early-Titled-Tuesday-Blitz-October-10-2023"]
[Site "Chess.com"]
[Date "2023.10.10"]
[Round "1"]
[White "Schattman"]
[Black "Riku-gan"]
[Result "0-1"]
[WhiteElo "2478"]
[BlackElo "2850"]
[TimeControl "180+1"]
[EndTime "8:08:21 PDT"]
[Termination "Riku-gan won on time"]

1. d4 {[%clk 0:03:00.9]} 1... Nf6 {[%clk 0:02:58.3]} 2. Nf3 {[%clk 0:02:59]}
2... e6 {[%clk 0:02:57.7]} 3. g3 {[%clk 0:02:59]} 3... d5 {[%clk 0:02:55.9]} 4.
Bg2 {[%clk 0:02:58.3]} 4... Be7 {[%clk 0:02:54.8]} 5. O-O {[%clk 0:02:57.9]}
5... O-O {[%clk 0:02:48.7]} 6. c4 {[%clk 0:02:57.8]} 6... dxc4 {[%clk
0:02:49.6]} 7. Ne5 {[%clk 0:02:57.7]} 7... Nc6 {[%clk 0:02:48.6]} 8. Bxc6 {[%clk
0:02:57.4]} 8... bxc6 {[%clk 0:02:49.5]} 9. Nxc6 {[%clk 0:02:57.9]} 9... Qe8
{[%clk 0:02:48.5]} 10. Nxe7+ {[%clk 0:02:57.7]} 10... Qxe7 {[%clk 0:02:49.4]}
11. Qa4 {[%clk 0:02:57]} 11... a5 {[%clk 0:02:30.4]} 12. Bg5 {[%clk 0:02:37.4]}
12... Qb4 {[%clk 0:02:17.7]} 13. Qc2 {[%clk 0:02:22.3]} 13... Bb7 {[%clk
0:02:12.1]} 14. Bxf6 {[%clk 0:02:12.9]} 14... gxf6 {[%clk 0:02:13]} 15. Nc3
{[%clk 0:02:12.6]} 15... Rad8 {[%clk 0:02:10.6]} 16. Rad1 {[%clk 0:02:07.2]}
16... Rd6 {[%clk 0:01:56.7]} 17. a3 {[%clk 0:01:57.3]} 17... Qb6 {[%clk
0:01:55.7]} 18. Ne4 {[%clk 0:01:40.8]} 18... Bxe4 {[%clk 0:01:51.2]} 19. Qxe4
{[%clk 0:01:40.6]} 19... Rfd8 {[%clk 0:01:52.1]} 20. Qg4+ {[%clk 0:01:36.5]}
20... Kf8 {[%clk 0:01:51.9]} 21. e3 {[%clk 0:01:25]} 21... Qxb2 {[%clk
0:01:34.7]} 22. Qh4 {[%clk 0:01:04.4]} 22... Ke7 {[%clk 0:01:27.2]} 23. Ra1
{[%clk 0:01:04.1]} 23... c3 {[%clk 0:01:26.5]} 24. Rfb1 {[%clk 0:01:01.2]} 24...
Qd2 {[%clk 0:01:15.5]} 25. Rd1 {[%clk 0:00:56.7]} 25... Qe2 {[%clk 0:01:14.9]}
26. Re1 {[%clk 0:00:51.9]} 26... Qc4 {[%clk 0:01:15.1]} 27. Qxh7 {[%clk
0:00:45.1]} 27... Rb8 {[%clk 0:01:11.5]} 28. Rac1 {[%clk 0:00:21.4]} 28... Rb2
{[%clk 0:01:10.7]} 29. Qh8 {[%clk 0:00:21.8]} 29... Rd8 {[%clk 0:01:03.9]} 30.
Qh5 {[%clk 0:00:20]} 30... Qd3 {[%clk 0:01:04.2]} 31. Qf3 {[%clk 0:00:18.9]}
31... c2 {[%clk 0:01:00.9]} 32. Qc6 {[%clk 0:00:18.1]} 32... Rd7 {[%clk
0:01:01]} 33. h4 {[%clk 0:00:17.2]} 33... Rb1 {[%clk 0:00:46.7]} 34. Kg2 {[%clk
0:00:17.6]} 34... f5 {[%clk 0:00:41.6]} 35. h5 {[%clk 0:00:17.4]} 35... Qxa3
{[%clk 0:00:38.6]} 36. Qxc2 {[%clk 0:00:14.8]} 36... Rxc1 {[%clk 0:00:34.8]} 37.
Rxc1 {[%clk 0:00:14.6]} 37... Kf6 {[%clk 0:00:35.3]} 38. h6 {[%clk 0:00:14.8]}
38... Qf8 {[%clk 0:00:32.1]} 39. Rh1 {[%clk 0:00:13.9]} 39... Qa8+ {[%clk
0:00:32.1]} 40. Kg1 {[%clk 0:00:13.1]} 40... Rd8 {[%clk 0:00:30.5]} 41. h7
{[%clk 0:00:13.3]} 41... Kg7 {[%clk 0:00:28.5]} 42. Qd1 {[%clk 0:00:12.2]} 42...
Kh8 {[%clk 0:00:25.2]} 43. Qh5 {[%clk 0:00:11.9]} 43... Rb8 {[%clk 0:00:23.3]}
44. Kh2 {[%clk 0:00:10.8]} 44... Rb2 {[%clk 0:00:23]} 45. Rf1 {[%clk 0:00:10.6]}
45... Qf8 {[%clk 0:00:22.5]} 46. Qg5 {[%clk 0:00:09]} 46... Qg7 {[%clk
0:00:22.1]} 47. Qxg7+ {[%clk 0:00:05.5]} 47... Kxg7 {[%clk 0:00:23]} 48. Kg2
{[%clk 0:00:05.6]} 48... Kxh7 {[%clk 0:00:23.3]} 49. Ra1 {[%clk 0:00:05.4]}
49... Rb5 {[%clk 0:00:23.3]} 50. Ra4 {[%clk 0:00:06]} 50... Kg6 {[%clk
0:00:23.3]} 51. Rc4 {[%clk 0:00:05.8]} 51... Rb7 {[%clk 0:00:22.3]} 52. Ra4
{[%clk 0:00:04.8]} 52... Ra7 {[%clk 0:00:23.2]} 53. Kf3 {[%clk 0:00:05.3]} 53...
Kf6 {[%clk 0:00:24.1]} 54. Ke2 {[%clk 0:00:05.6]} 54... Ke7 {[%clk 0:00:24.4]}
55. Kd3 {[%clk 0:00:06]} 55... Kd6 {[%clk 0:00:25.3]} 56. Kc4 {[%clk 0:00:06.4]}
56... c6 {[%clk 0:00:25.9]} 57. f3 {[%clk 0:00:06.6]} 57... f6 {[%clk
0:00:24.9]} 58. e4 {[%clk 0:00:06.7]} 58... fxe4 {[%clk 0:00:25]} 59. fxe4
{[%clk 0:00:06.5]} 59... e5 {[%clk 0:00:25.6]} 60. dxe5+ {[%clk 0:00:02.9]}
60... fxe5 {[%clk 0:00:26.5]} 61. Kd3 {[%clk 0:00:03]} 61... Kc5 {[%clk
0:00:26.5]} 62. Kc3 {[%clk 0:00:02.5]} 62... Kb5 {[%clk 0:00:26.7]} 63. Kb3
{[%clk 0:00:02.8]} 63... Rg7 {[%clk 0:00:27.3]} 0-1

[Event "Early-Titled-Tuesday-Blitz-October-10-2023"]
[Site "Chess.com"]
[Date "2023.10.10"]
[Round "1"]
[White "kreonx"]
[Black "BardArtem"]
[Result "0-1"]
[WhiteElo "2464"]
[BlackElo "2830"]
[TimeControl "180+1"]
[EndTime "8:08:22 PDT"]
[Termination "BardArtem won by resignation"]

1. e4 {[%clk 0:03:00.2]} 1... e5 {[%clk 0:02:59.6]} 2. Nf3 {[%clk 0:02:59.2]}
2... Nc6 {[%clk 0:02:59.8]} 3. d4 {[%clk 0:02:59.6]} 3... exd4 {[%clk 0:03:00]}
4. Nxd4 {[%clk 0:03:00.5]} 4... Bb4+ {[%clk 0:02:57.9]} 5. c3 {[%clk 0:02:59.3]}
5... Bc5 {[%clk 0:02:58.3]} 6. Be3 {[%clk 0:02:58.2]} 6... Bb6 {[%clk
0:02:56.7]} 7. Be2 {[%clk 0:02:52.2]} 7... Nf6 {[%clk 0:02:56.2]} 8. Nd2 {[%clk
0:02:51.8]} 8... O-O {[%clk 0:02:55.6]} 9. O-O {[%clk 0:02:51.6]} 9... Re8
{[%clk 0:02:56]} 10. Nxc6 {[%clk 0:02:47.7]} 10... bxc6 {[%clk 0:02:55]} 11.
Bxb6 {[%clk 0:02:46.8]} 11... axb6 {[%clk 0:02:55.9]} 12. Bd3 {[%clk 0:02:37.1]}
12... d5 {[%clk 0:02:53.1]} 13. exd5 {[%clk 0:02:36.5]} 13... cxd5 {[%clk
0:02:54]} 14. Qc2 {[%clk 0:02:32.5]} 14... Bb7 {[%clk 0:02:48.1]} 15. a3 {[%clk
0:02:27.4]} 15... c5 {[%clk 0:02:32.8]} 16. Rfe1 {[%clk 0:02:12]} 16... h6
{[%clk 0:02:29.2]} 17. Bb5 {[%clk 0:02:05.7]} 17... Re7 {[%clk 0:02:25.7]} 18.
Rxe7 {[%clk 0:02:00.8]} 18... Qxe7 {[%clk 0:02:22.9]} 19. Nf3 {[%clk 0:01:59.1]}
19... d4 {[%clk 0:02:08.1]} 20. Re1 {[%clk 0:01:58.5]} 20... Qd6 {[%clk
0:02:05.2]} 21. Qd3 {[%clk 0:01:53.2]} 21... Rd8 {[%clk 0:01:47.3]} 22. cxd4
{[%clk 0:01:52.4]} 22... cxd4 {[%clk 0:01:48.2]} 23. Bc4 {[%clk 0:01:43.9]}
23... Bxf3 {[%clk 0:01:41.9]} 24. Qxf3 {[%clk 0:01:43.4]} 24... d3 {[%clk
0:01:42.8]} 25. Rd1 {[%clk 0:01:37.6]} 25... d2 {[%clk 0:01:40.8]} 26. h3 {[%clk
0:01:35.2]} 26... Qd4 {[%clk 0:01:33.9]} 27. b3 {[%clk 0:01:32.2]} 27... Re8
{[%clk 0:01:15.6]} 28. Kf1 {[%clk 0:01:17.9]} 28... Qb2 {[%clk 0:00:50.3]} 29.
Qd3 {[%clk 0:01:08.8]} 29... Ne4 {[%clk 0:00:40.7]} 30. f3 {[%clk 0:00:50.7]}
30... Qc1 {[%clk 0:00:33.1]} 31. Bxf7+ {[%clk 0:00:15.3]} 31... Kf8 {[%clk
0:00:23.6]} 32. Qb1 {[%clk 0:00:11.8]} 32... Qxb1 {[%clk 0:00:12]} 33. Rxb1
{[%clk 0:00:12.7]} 33... Nc3 {[%clk 0:00:12.8]} 34. Bxe8 {[%clk 0:00:11.3]}
34... Nxb1 {[%clk 0:00:12.7]} 35. Ke2 {[%clk 0:00:08.7]} 35... Kxe8 {[%clk
0:00:13.1]} 36. a4 {[%clk 0:00:09.1]} 36... Kd7 {[%clk 0:00:09.5]} 37. b4 {[%clk
0:00:09.6]} 37... Kc6 {[%clk 0:00:09.4]} 38. f4 {[%clk 0:00:10]} 38... Nc3+
{[%clk 0:00:07.6]} 39. Kxd2 {[%clk 0:00:09.9]} 39... Nxa4 {[%clk 0:00:08.5]} 40.
Kd3 {[%clk 0:00:10.2]} 40... Kb5 {[%clk 0:00:07.8]} 41. g4 {[%clk 0:00:08.8]}
41... Kxb4 {[%clk 0:00:07.9]} 42. f5 {[%clk 0:00:09]} 42... Kc5 {[%clk 0:00:08]}
43. Ke4 {[%clk 0:00:07.9]} 43... Kd6 {[%clk 0:00:08]} 44. h4 {[%clk 0:00:08.4]}
44... Nc5+ {[%clk 0:00:06.9]} 45. Kd4 {[%clk 0:00:08.1]} 45... Nd7 {[%clk
0:00:06.3]} 46. g5 {[%clk 0:00:08.2]} 46... hxg5 {[%clk 0:00:07.2]} 47. hxg5
{[%clk 0:00:08.7]} 47... Ne5 {[%clk 0:00:03.5]} 48. f6 {[%clk 0:00:06.8]} 48...
gxf6 {[%clk 0:00:04.4]} 49. gxf6 {[%clk 0:00:07.4]} 49... Nf7 {[%clk 0:00:04.6]}
50. Kc4 {[%clk 0:00:07.5]} 50... Kc6 {[%clk 0:00:04.4]} 51. Kb4 {[%clk
0:00:08.4]} 51... b5 {[%clk 0:00:04.5]} 52. Kc3 {[%clk 0:00:08.5]} 52... Kc5
{[%clk 0:00:05]} 53. Kd3 {[%clk 0:00:08.9]} 53... b4 {[%clk 0:00:05.1]} 54. Ke4
{[%clk 0:00:09.5]} 54... b3 {[%clk 0:00:04.6]} 55. Kf5 {[%clk 0:00:07.4]} 55...
b2 {[%clk 0:00:04.9]} 56. Ke6 {[%clk 0:00:07.8]} 56... Nh6 {[%clk 0:00:05.3]}
57. f7 {[%clk 0:00:06.9]} 57... Nxf7 {[%clk 0:00:05.7]} 58. Kxf7 {[%clk
0:00:05.6]} 58... b1=Q {[%clk 0:00:06.2]} 0-1